fUST/lending_fUST_20240617
["ID","MTS","AMOUNT","RATE_DAILY","PERIOD"]
[329663900,1718553919019,686.94663372,9.999e-05,2]
[329664265,1718554241830,-998.94856013,0.00015089,2]
[329664268,1718554241859,-398.141,0.00015089,2]
[329664615,1718554247870,-4501.58366906,0.00015089,2]
[329664618,1718554247882,-77.50029638,0.0001509,2]
[329664627,1718554247930,-557.93973278,0.0001509,2]
[329664769,1718554250515,-8939.20351559,0.0001509,2]
[329666304,1718554323135,8500.0,0.00023199,60]
[329666305,1718554377985,262.30403905,9.999e-05,2]
[329666306,1718554387177,490.40203244,9.999e-05,2]
[329666307,1718554403228,286.10594069,9.999e-05,2]
[329666308,1718554433541,686.94663372,9.999e-05,2]
[329666309,1718554443559,159.18662082,9.999e-05,2]
[329666310,1718554450672,272.76606305,9.999e-05,2]
[329666311,1718554463296,373.11123262,9.999e-05,2]
[329666314,1718554740579,24900.0,0.00013664,2]
[329666315,1718554772636,2038.56645483,9.999e-05,2]
[329666316,1718554792716,1502.63553111,9.999e-05,2]
[329666317,1718554851723,2644.84021867,9.999e-05,2]
[329666318,1718554856834,155.00620025,9.999e-05,2]
[329666319,1718554858003,19322.75605349,9.999e-05,2]
[329666320,1718554863252,300.47277561,9.999e-05,2]
[329666321,1718554871910,19322.75605349,9.999e-05,2]
[329666322,1718554877206,301.84080514,9.999e-05,2]
[329666323,1718554880853,172.99379975,9.999e-05,2]
[329666324,1718554889911,5537.02930884,9.999e-05,2]
[329666325,1718554891804,155.00620025,9.999e-05,4]
[329666326,1718555022983,250.0,0.00013097,2]
[329666327,1718555032167,511.07,0.00022,120]
[329666328,1718555077617,24102.2295784,0.00013699,2]
[329666329,1718555083817,3073.20875241,0.00013698,2]
[329666330,1718555142165,523.15536455,9.999e-05,2]
[329666331,1718555172385,199.4486089,0.00013065,2]
[329666332,1718555213138,2038.56645483,9.999e-05,2]
[329666333,1718555257617,151.00755038,0.00018397,30]
[329666334,1718555257706,151.00755038,0.00018029,120]
[329666335,1718555330720,9400.6772961,0.00013081,2]
[329666336,1718555333343,155.00775039,9.999e-05,4]
[329666337,1718555337793,274.004279,0.00013699,2]
[329666338,1718555341469,300.0,0.00014,2]
[329666339,1718555343591,198.0,0.00014,2]
[329666343,1718555363108,3122.34221338,0.00014,4]
[329666377,1718555435713,-300.0,0.00014015,2]
[329666378,1718555435728,-166.0,0.00014015,2]
[329666379,1718555435764,-279.25367747,0.00014015,2]
[329666402,1718555436352,-2627.95507494,0.00014015,2]
[329666404,1718555436366,-3122.34221338,0.00014015,4]
[329666406,1718555436377,-1073.7027117,0.00014016,2]
[329666409,1718555436413,-703.7636435,0.00014016,2]
[329666411,1718555436434,-595.2,0.00014016,2]
[329666413,1718555436449,-1000.0,0.00014016,2]
[329666415,1718555436463,-416.6733073,0.00014016,2]
[329666636,1718555441868,-291.97428362,0.00014016,2]
[329666681,1718555442890,-6470.0017906,0.00014016,2]
[329666683,1718555442914,-162.19863338,0.00014017,2]
[329666686,1718555442929,-942.20547454,0.00014116,2]
[329666688,1718555442956,-155.18385701,0.00014116,4]
[329666690,1718555442968,-308.34068653,0.00014116,2]
[329666692,1718555442980,-181.97694132,0.00014116,2]
[329666693,1718555443013,-281.85605547,0.00014116,2]
[329666695,1718555443041,-215.95975088,0.00014116,2]
[329666697,1718555443081,-1294.52780377,0.00014116,2]
[329666700,1718555443098,-540.39540835,0.00014116,2]
[329666702,1718555443109,-551.39540687,0.00014116,2]
[329666704,1718555443124,-720.74038188,0.00014116,2]
[329666705,1718555443135,-302.72476705,0.00014116,2]
[329666707,1718555443148,-691.28568206,0.00014116,2]
[329666708,1718555443173,-1342.40609524,0.00014116,2]
[329666710,1718555443188,-309.9380155,0.00014116,2]
[329666713,1718555443234,-1903.43712619,0.00014116,2]
[329666723,1718555443404,-274.75342157,0.00014116,2]
[329666724,1718555443482,-164.90654003,0.00014116,2]
[329666726,1718555443498,-619.13944398,0.00014116,2]
[329666728,1718555443510,-555.69941159,0.00014116,2]
[329666731,1718555443526,-500.0,0.00014117,2]
[329666733,1718555443546,-2839.39,0.00014117,2]
[329666735,1718555443559,-500.0,0.00014117,2]
[329666737,1718555443578,-648.3,0.00014117,2]
[329666739,1718555443590,-500.0,0.00014117,2]
[329666741,1718555443601,-500.0,0.00014117,2]
[329666743,1718555443625,-500.0,0.00014117,2]
[329666745,1718555443646,-500.0,0.00014117,2]
[329666747,1718555443665,-6090.84,0.00014117,2]
[329666748,1718555443696,-500.0,0.00014117,2]
[329666750,1718555443717,-637.5,0.00014117,2]
[329666751,1718555443745,-500.0,0.00014117,2]
[329666755,1718555443772,-1495.6609626,0.00014117,2]
[329666763,1718555443806,-1337.34,0.00014118,2]
[329666769,1718555443827,-500.0,0.00014118,2]
[329666774,1718555443838,-1099.54,0.00014118,2]
[329666777,1718555443856,-500.0,0.00014118,2]
[329666783,1718555443869,-151.0,0.00014118,2]
[329666784,1718555443884,-7522.15,0.00014118,2]
[329666789,1718555443932,-226.29745101,0.00014118,2]
[329666793,1718555443953,-500.0,0.00014118,2]
[329666800,1718555443972,-1387.13,0.00014118,2]
[329666807,1718555444054,-500.0,0.00014118,2]
[329666809,1718555444066,-500.0,0.00014118,2]
[329666812,1718555444096,-3859.25,0.00014118,2]
[329666814,1718555444116,-151.0,0.00014118,2]
[329666816,1718555444131,-151.0,0.00014118,2]
[329666819,1718555444168,-290.0,0.00014118,2]
[329666822,1718555444191,-500.0,0.00014118,2]
[329666825,1718555444204,-612.58281593,0.00014118,2]
[329666827,1718555444234,-151.0,0.00014118,2]
[329666828,1718555444246,-151.0,0.00014118,2]
[329666831,1718555444265,-500.0,0.00014118,2]
[329666832,1718555444283,-151.0,0.00014118,2]
[329666834,1718555444300,-151.0,0.00014118,2]
[329666836,1718555444331,-2075.35,0.00014118,2]
[329666838,1718555444343,-151.0,0.00014118,2]
[329666839,1718555444359,-2038.34,0.00014118,2]
[329666841,1718555444370,-151.0,0.00014118,2]
[329666843,1718555444384,-151.0,0.00014118,2]
[329666845,1718555444396,-151.0,0.00014118,2]
[329666847,1718555444424,-151.0,0.00014118,2]
[329666849,1718555444445,-151.0,0.00014118,2]
[329666852,1718555444464,-942.82,0.00014118,2]
[329666854,1718555444478,-151.0,0.00014118,2]
[329666856,1718555444491,-151.0,0.00014118,2]
[329666858,1718555444505,-500.0,0.00014118,2]
[329666859,1718555444518,-500.0,0.00014118,2]
[329666861,1718555444547,-659.62,0.00014118,2]
[329666863,1718555444576,-6090.84,0.00014118,2]
[329666865,1718555444593,-500.0,0.00014118,2]
[329666867,1718555444606,-544.473507,0.00014118,2]
[329666869,1718555444622,-544.473507,0.00014118,2]
[329666871,1718555444637,-544.473507,0.00014118,2]
[329666873,1718555444652,-544.473507,0.00014118,2]
[329666878,1718555444666,-2227.7,0.00014118,2]
[329666882,1718555444685,-17763.7704899,0.00014118,2]
[329666888,1718555444701,-162.19863337,0.00014292,2]
[329666891,1718555444725,-500.0,0.00014391,2]
[329666895,1718555444748,-2839.39,0.00014391,2]
[329666901,1718555444761,-500.0,0.00014391,2]
[329666908,1718555444780,-648.3,0.00014391,2]
[329666913,1718555444794,-500.0,0.00014391,2]
[329666917,1718555444806,-500.0,0.00014391,2]
[329666920,1718555444818,-500.0,0.00014391,2]
[329666923,1718555444856,-500.0,0.00014391,2]
[329666926,1718555444894,-500.0,0.00014391,2]
[329666929,1718555444932,-637.5,0.00014391,2]
[329666933,1718555444977,-1337.34,0.00014392,2]
[329666934,1718555444990,-500.0,0.00014392,2]
[329666936,1718555445002,-1099.54,0.00014392,2]
[329666938,1718555445037,-500.0,0.00014392,2]
[329666940,1718555445060,-151.0,0.00014392,2]
[329666942,1718555445080,-7522.15,0.00014392,2]
[329666944,1718555445096,-500.0,0.00014392,2]
[329666945,1718555445116,-1387.13,0.00014392,2]
[329666947,1718555445149,-500.0,0.00014392,2]
[329666949,1718555445176,-500.0,0.00014392,2]
[329666951,1718555445202,-3859.25,0.00014392,2]
[329666954,1718555445243,-151.0,0.00014392,2]
[329666955,1718555445268,-151.0,0.00014392,2]
[329666957,1718555445282,-500.0,0.00014392,2]
[329666960,1718555445329,-151.0,0.00014392,2]
[329666962,1718555445377,-151.0,0.00014392,2]
[329666964,1718555445429,-500.0,0.00014392,2]
[329666967,1718555445449,-182.106432,0.00014392,2]
[329666969,1718555445465,-2075.35,0.00014392,2]
[329666971,1718555445491,-2038.34,0.00014392,2]
[329666972,1718555445518,-151.0,0.00014392,2]
[329666974,1718555445530,-151.0,0.00014392,2]
[329666975,1718555445549,-151.0,0.00014392,2]
[329666976,1718555445567,-151.0,0.00014392,2]
[329666977,1718555445593,-151.0,0.00014392,2]
[329666979,1718555445613,-151.0,0.00014392,2]
[329666981,1718555445645,-942.82,0.00014392,2]
[329666982,1718555445680,-151.0,0.00014392,2]
[329666983,1718555445719,-151.0,0.00014392,2]
[329666984,1718555445754,-500.0,0.00014392,2]
[329666985,1718555445772,-500.0,0.00014392,2]
[329666986,1718555445793,-500.0,0.00014392,2]
[329666987,1718555445821,-544.473507,0.00014392,2]
[329666988,1718555445865,-544.473507,0.00014392,2]
[329666989,1718555445912,-544.473507,0.00014392,2]
[329666990,1718555445930,-544.473507,0.00014392,2]
[329666991,1718555445980,-2227.7,0.00014392,2]
[329666992,1718555446015,-162.19863337,0.00014566,2]
[329666993,1718555446031,-500.0,0.00014665,2]
[329666994,1718555446046,-2839.39,0.00014665,2]
[329666995,1718555446076,-500.0,0.00014665,2]
[329666996,1718555446121,-648.3,0.00014665,2]
[329666997,1718555446142,-500.0,0.00014665,2]
[329666998,1718555446155,-500.0,0.00014665,2]
[329666999,1718555446167,-500.0,0.00014665,2]
[329667000,1718555446187,-500.0,0.00014665,2]
[329667001,1718555446238,-6090.84,0.00014665,2]
[329667002,1718555446268,-500.0,0.00014665,2]
[329667003,1718555446310,-637.5,0.00014665,2]
[329667004,1718555446359,-151.0,0.00014666,2]
[329667005,1718555446432,-167.80308,0.00014666,2]
[329667006,1718555446450,-1337.34,0.00014666,2]
[329667007,1718555446498,-167.80308,0.00014666,2]
[329667008,1718555446522,-292.371505,0.00014666,2]
[329667009,1718555446555,-689.219524,0.00014666,2]
[329667010,1718555446577,-292.371505,0.00014666,2]
[329667011,1718555446595,-689.219524,0.00014666,2]
[329667012,1718555446618,-3875.980181,0.00014666,2]
[329667013,1718555446636,-500.0,0.00014666,2]
[329667014,1718555446663,-3875.980181,0.00014666,2]
[329667015,1718555446691,-1099.54,0.00014666,2]
[329667016,1718555446709,-500.0,0.00014666,2]
[329667017,1718555446726,-207.350934,0.00014666,2]
[329667018,1718555446743,-231.812815,0.00014666,2]
[329667019,1718555446762,-205.494387,0.00014666,2]
[329667020,1718555446780,-231.812815,0.00014666,2]
[329667021,1718555446804,-7522.15,0.00014666,2]
[329667022,1718555446832,-157.202612,0.00014666,2]
[329667025,1718555446868,-500.0,0.00014666,2]
[329667027,1718555446891,-1387.13,0.00014666,2]
[329667028,1718555446925,-500.0,0.00014666,2]
[329667029,1718555446943,-464.00337964,0.00014666,2]
[329667030,1718555446958,-3859.25,0.00014666,2]
[329667031,1718555446976,-169.206209,0.00014666,2]
[329667032,1718555446990,-881.784166,0.00014666,2]
[329667033,1718555447008,-169.206209,0.00014666,2]
[329667034,1718555447048,-881.784166,0.00014666,2]
[329667035,1718555447072,-151.0,0.00014666,2]
[329667036,1718555447101,-151.0,0.00014666,2]
[329667037,1718555447125,-151.0,0.00014666,2]
[329667038,1718555447148,-500.0,0.00014666,2]
[329667039,1718555447172,-151.0,0.00014666,2]
[329667040,1718555447186,-151.0,0.00014666,2]
[329667041,1718555447201,-637.07,0.00014666,2]
[329667042,1718555447220,-151.0,0.00014666,2]
[329667043,1718555447235,-2075.35,0.00014666,2]
[329667044,1718555447252,-2038.34,0.00014666,2]
[329667045,1718555447268,-151.0,0.00014666,2]
[329667046,1718555447293,-151.0,0.00014666,2]
[329667047,1718555447342,-151.0,0.00014666,2]
[329667048,1718555447357,-151.0,0.00014666,2]
[329667049,1718555447382,-151.0,0.00014666,2]
[329667050,1718555447409,-151.0,0.00014666,2]
[329667051,1718555447428,-248.761928,0.00014666,2]
[329667052,1718555447453,-151.0,0.00014666,2]
[329667053,1718555447470,-151.0,0.00014666,2]
[329667054,1718555447484,-151.0,0.00014666,2]
[329667055,1718555447512,-942.82,0.00014666,2]
[329667056,1718555447527,-248.23675,0.00014666,2]
[329667057,1718555447555,-500.0,0.00014666,2]
[329667058,1718555447579,-500.0,0.00014666,2]
[329667061,1718555447607,-500.0,0.00014666,2]
[329667065,1718555447641,-544.473507,0.00014666,2]
[329667070,1718555447689,-544.473507,0.00014666,2]
[329667072,1718555447703,-544.473507,0.00014666,2]
[329667074,1718555447718,-544.473507,0.00014666,2]
[329667076,1718555447734,-544.473507,0.00014666,2]
[329667078,1718555447760,-544.473507,0.00014666,2]
[329667080,1718555447779,-544.473507,0.00014666,2]
[329667082,1718555447794,-544.473507,0.00014666,2]
[329667084,1718555447819,-2227.7,0.00014666,2]
[329667086,1718555447834,-153.0,0.00014678,2]
[329667088,1718555447864,-153.0,0.00014678,2]
[329667091,1718555447901,-153.0,0.00014678,2]
[329667093,1718555447931,-153.0,0.00014678,2]
[329667095,1718555447948,-153.0,0.00014678,2]
[329667097,1718555447978,-153.0,0.000147,2]
[329667099,1718555448003,-219.8,0.000149,2]
[329667100,1718555448025,-500.0,0.00014939,2]
[329667103,1718555448057,-2839.39,0.00014939,2]
[329667105,1718555448076,-500.0,0.00014939,2]
[329667108,1718555448091,-648.3,0.00014939,2]
[329667110,1718555448104,-500.0,0.00014939,2]
[329667112,1718555448117,-500.0,0.00014939,2]
[329667114,1718555448131,-500.0,0.00014939,2]
[329667117,1718555448145,-500.0,0.00014939,2]
[329667119,1718555448159,-6090.84,0.00014939,2]
[329667121,1718555448173,-500.0,0.00014939,2]
[329667125,1718555448220,-637.5,0.00014939,2]
[329667127,1718555448249,-167.80308,0.0001494,2]
[329667129,1718555448263,-167.80308,0.0001494,2]
[329667133,1718555448276,-1337.34,0.0001494,2]
[329667138,1718555448297,-292.371505,0.0001494,2]
[329667142,1718555448330,-292.371505,0.0001494,2]
[329667145,1718555448352,-3875.980181,0.0001494,2]
[329667149,1718555448383,-500.0,0.0001494,2]
[329667153,1718555448430,-3875.980181,0.0001494,2]
[329667156,1718555448458,-1099.54,0.0001494,2]
[329667160,1718555448474,-500.0,0.0001494,2]
[329667163,1718555448490,-231.812815,0.0001494,2]
[329667167,1718555448521,-231.812815,0.0001494,2]
[329667170,1718555448554,-7522.15,0.0001494,2]
[329667173,1718555448582,-500.0,0.0001494,2]
[329667178,1718555448601,-1387.13,0.0001494,2]
[329667180,1718555448615,-500.0,0.0001494,2]
[329667183,1718555448668,-3859.25,0.0001494,2]
[329667186,1718555448708,-169.206209,0.0001494,2]
[329667189,1718555448736,-881.784166,0.0001494,2]
[329667192,1718555448752,-169.206209,0.0001494,2]
[329667196,1718555448766,-881.784166,0.0001494,2]
[329667197,1718555448779,-151.0,0.0001494,2]
[329667201,1718555448797,-151.0,0.0001494,2]
[329667204,1718555448809,-151.0,0.0001494,2]
[329667206,1718555448823,-500.0,0.0001494,2]
[329667209,1718555448855,-151.0,0.0001494,2]
[329667213,1718555448877,-151.0,0.0001494,2]
[329667216,1718555448896,-151.0,0.0001494,2]
[329667218,1718555448910,-2075.35,0.0001494,2]
[329667219,1718555448926,-2038.34,0.0001494,2]
[329667221,1718555448940,-151.0,0.0001494,2]
[329667232,1718555449098,-151.0,0.0001494,2]
[329667234,1718555449125,-151.0,0.0001494,2]
[329667236,1718555449140,-942.82,0.0001494,2]
[329667237,1718555449156,-151.0,0.0001494,2]
[329667240,1718555449168,-151.0,0.0001494,2]
[329667242,1718555449186,-181.14839902,0.0001494,2]
[329667243,1718555449197,-500.0,0.0001494,2]
[329667246,1718555449230,-544.473507,0.0001494,2]
[329667249,1718555449243,-544.473507,0.0001494,2]
[329667251,1718555449256,-544.473507,0.0001494,2]
[329667253,1718555449270,-544.473511,0.0001494,2]
[329667255,1718555449290,-2227.7,0.0001494,2]
[329667257,1718555449310,-944.91676478,0.00015,2]
[329667260,1718555449367,-6090.84,0.00015088,2]
[329667262,1718555449415,-500.0,0.00015089,2]
[329667264,1718555449431,-518.26970359,0.00015089,2]
[329667266,1718555449460,-500.0,0.00015089,2]
[329667268,1718555449488,-500.0,0.00015089,2]
[329667271,1718555449511,-527.97,0.00015089,2]
[329667275,1718555449552,-500.0,0.00015089,2]
[329667277,1718555449563,-459.2208761,0.00015089,2]
[329667278,1718555449591,-300.78578255,0.00015089,2]
[329667280,1718555449603,-500.0,0.00015089,2]
[329667283,1718555449621,-812.07,0.00015089,2]
[329667285,1718555449640,-500.0,0.00015089,2]
[329667286,1718555449654,-500.0,0.00015089,2]
[329667288,1718555449668,-852.92,0.00015089,2]
[329667290,1718555449680,-151.0,0.00015089,2]
[329667292,1718555449694,-500.0,0.00015089,2]
[329667294,1718555449712,-500.0,0.00015089,2]
[329667296,1718555449732,-749.39,0.00015089,2]
[329667297,1718555449745,-167.80308,0.00015089,2]
[329667300,1718555449781,-167.80308,0.00015089,2]
[329667302,1718555449793,-1343.34,0.00015089,2]
[329667303,1718555449804,-292.371505,0.00015089,2]
[329667304,1718555449833,-689.219524,0.00015089,2]
[329667306,1718555449847,-292.371505,0.00015089,2]
[329667308,1718555449870,-689.219524,0.00015089,2]
[329667309,1718555449884,-3875.980181,0.00015089,2]
[329667311,1718555449906,-3875.980181,0.00015089,2]
[329667313,1718555449921,-500.0,0.00015089,2]
[329667315,1718555449937,-231.812815,0.00015089,2]
[329667317,1718555449962,-231.812815,0.00015089,2]
[329667319,1718555449997,-169.206209,0.00015089,2]
[329667321,1718555450025,-881.784166,0.00015089,2]
[329667324,1718555450072,-169.206209,0.00015089,2]
[329667326,1718555450096,-881.784166,0.00015089,2]
[329667328,1718555450135,-500.0,0.00015089,2]
[329667330,1718555450152,-500.0,0.00015089,2]
[329667332,1718555450164,-500.0,0.00015089,2]
[329667334,1718555450185,-500.0,0.00015089,2]
[329667335,1718555450196,-500.0,0.00015089,2]
[329667337,1718555450211,-500.0,0.00015089,2]
[329667339,1718555450240,-261.7167289,0.00015089,2]
[329667341,1718555450252,-510.16329444,0.00015089,2]
[329667345,1718555450289,-500.0,0.00015089,2]
[329667347,1718555450320,-500.0,0.00015089,2]
[329667349,1718555450352,-500.0,0.00015089,2]
[329667351,1718555450383,-540.6,0.00015089,2]
[329667353,1718555450399,-500.0,0.00015089,2]
[329667355,1718555450410,-500.0,0.00015089,2]
[329667356,1718555450476,-500.0,0.00015089,2]
[329667359,1718555450519,-500.0,0.00015089,2]
[329667361,1718555450548,-506.88308617,0.00015089,2]
[329667362,1718555450561,-645.99,0.00015089,2]
[329667364,1718555450579,-2812.13279208,0.00015091,2]
[329667366,1718555450589,-6090.84,0.00015091,2]
[329667368,1718555450601,-6090.84,0.00015091,2]
[329667370,1718555450618,-763.98219598,0.00015092,2]
[329667372,1718555450634,-159.05426233,0.00015092,2]
[329667374,1718555450656,-272.54280692,0.00015092,2]
[329667375,1718555450673,-500.0,0.00015092,2]
[329667376,1718555450689,-500.0,0.00015092,2]
[329667377,1718555450715,-500.0,0.00015092,2]
[329667378,1718555450728,-151.0,0.00015092,2]
[329667379,1718555450754,-151.0,0.00015092,2]
[329667380,1718555450782,-500.0,0.00015092,2]
[329667381,1718555450795,-500.0,0.00015092,2]
[329667382,1718555450806,-500.0,0.00015092,2]
[329667384,1718555450819,-540.24,0.00015092,2]
[329667386,1718555450856,-500.0,0.00015092,2]
[329667387,1718555450881,-218.85318,0.00015092,2]
[329667389,1718555450908,-218.85318,0.00015092,2]
[329667391,1718555450920,-151.0,0.00015092,2]
[329667393,1718555450932,-500.0,0.00015092,2]
[329667395,1718555450945,-500.0,0.00015092,2]
[329667396,1718555450958,-500.0,0.00015092,2]
[329667398,1718555450974,-151.0,0.00015092,2]
[329667400,1718555450987,-151.0,0.00015092,2]
[329667402,1718555451002,-155.0924,0.00015092,2]
[329667404,1718555451030,-500.0,0.00015092,2]
[329667406,1718555451051,-500.0,0.00015092,2]
[329667407,1718555451067,-852.92,0.00015092,2]
[329667409,1718555451080,-151.0,0.00015092,2]
[329667411,1718555451094,-154.236462,0.00015092,2]
[329667413,1718555451133,-500.0,0.00015092,2]
[329667415,1718555451146,-500.0,0.00015092,2]
[329667417,1718555451158,-167.80308,0.00015092,2]
[329667419,1718555451176,-167.80308,0.00015092,2]
[329667421,1718555451192,-167.80308,0.00015092,2]
[329667422,1718555451204,-167.80308,0.00015092,2]
[329667424,1718555451218,-167.80308,0.00015092,2]
[329667426,1718555451233,-167.80308,0.00015092,2]
[329667428,1718555451245,-167.80308,0.00015092,2]
[329667429,1718555451263,-167.80308,0.00015092,2]
[329667432,1718555451290,-5171.37,0.00015092,2]
[329667434,1718555451310,-292.371505,0.00015092,2]
[329667436,1718555451320,-292.371505,0.00015092,2]
[329667437,1718555451338,-292.371505,0.00015092,2]
[329667438,1718555451357,-292.371505,0.00015092,2]
[329667440,1718555451373,-689.219524,0.00015092,2]
[329667442,1718555451385,-689.219524,0.00015092,2]
[329667444,1718555451414,-689.219524,0.00015092,2]
[329667445,1718555451428,-500.0,0.00015092,2]
[329667447,1718555451440,-689.219524,0.00015092,2]
[329667449,1718555451460,-292.371505,0.00015092,2]
[329667450,1718555451472,-166.98648838,0.00015092,2]
[329667456,1718555451652,-125.38501662,0.00015092,2]
[329667457,1718555451664,-292.371505,0.00015092,2]
[329667458,1718555451679,-292.371505,0.00015092,2]
[329667459,1718555451696,-689.219524,0.00015092,2]
[329667460,1718555451709,-500.0,0.00015092,2]
[329667461,1718555451721,-689.219524,0.00015092,2]
[329667462,1718555451733,-689.219524,0.00015092,2]
[329667463,1718555451744,-689.219524,0.00015092,2]
[329667464,1718555451768,-3875.980181,0.00015092,2]
[329667465,1718555451780,-3875.980181,0.00015092,2]
[329667466,1718555451820,-3875.980181,0.00015092,2]
[329667467,1718555451844,-3875.980181,0.00015092,2]
[329667468,1718555451868,-500.0,0.00015092,2]
[329667469,1718555451888,-3875.980181,0.00015092,2]
[329667470,1718555451902,-1953.08416448,0.00015092,2]
[329667471,1718555451920,-499.88,0.00015092,2]
[329667472,1718555452779,-3073.20875241,0.00014116,2]
[329667473,1718555452791,-500.0,0.00014117,2]
[329667474,1718555452802,-500.0,0.00014391,2]
[329667475,1718555452815,-500.0,0.00014665,2]
[329667476,1718555452829,-369.82725275,0.00014939,2]
[329667477,1718555452855,-1423.01601652,0.00015092,2]
[329667478,1718555452875,-769.53669932,0.00015092,2]
[329667512,1718555454792,-336.94353149,0.00015092,2]
[329667513,1718555454837,-340.83,0.00015092,2]
[329667514,1718555454852,-2428.66995019,0.00015092,2]
[329667516,1718555454871,-3875.980181,0.00015092,2]
[329667518,1718555454896,-500.0,0.00015092,2]
[329667521,1718555454924,-231.812815,0.00015092,2]
[329667524,1718555454957,-231.812815,0.00015092,2]
[329667525,1718555454987,-231.812815,0.00015092,2]
[329667528,1718555455021,-231.812815,0.00015092,2]
[329667529,1718555455089,-500.0,0.00015092,2]
[329667531,1718555455136,-231.812815,0.00015092,2]
[329667534,1718555455176,-231.812815,0.00015092,2]
[329667535,1718555455198,-231.812815,0.00015092,2]
[329667538,1718555455236,-231.812815,0.00015092,2]
[329667540,1718555455264,-500.0,0.00015092,2]
[329667541,1718555455306,-500.0,0.00015092,2]
[329667542,1718555455350,-5340.64,0.00015092,2]
[329667543,1718555455392,-500.0,0.00015092,2]
[329667544,1718555455443,-169.206209,0.00015092,2]
[329667545,1718555455466,-169.206209,0.00015092,2]
[329667546,1718555455489,-169.206209,0.00015092,2]
[329667547,1718555455503,-169.206209,0.00015092,2]
[329667548,1718555455518,-881.784166,0.00015092,2]
[329667549,1718555455532,-881.784166,0.00015092,2]
[329667550,1718555455545,-881.784166,0.00015092,2]
[329667552,1718555455569,-500.0,0.00015092,2]
[329667554,1718555455582,-881.784166,0.00015092,2]
[329667556,1718555455606,-169.206209,0.00015092,2]
[329667557,1718555455619,-818.37,0.00015092,2]
[329667558,1718555455634,-169.206209,0.00015092,2]
[329667559,1718555455650,-169.206209,0.00015092,2]
[329667560,1718555455665,-169.206209,0.00015092,2]
[329667561,1718555455696,-881.784166,0.00015092,2]
[329667562,1718555455710,-881.784166,0.00015092,2]
[329667563,1718555455722,-881.784166,0.00015092,2]
[329667564,1718555455735,-881.784166,0.00015092,2]
[329667565,1718555455749,-500.0,0.00015092,2]
[329667566,1718555455776,-500.0,0.00015092,2]
[329667567,1718555455828,-500.0,0.00015092,2]
[329667568,1718555455842,-500.0,0.00015092,2]
[329667569,1718555455853,-500.0,0.00015092,2]
[329667570,1718555455866,-500.0,0.00015092,2]
[329667571,1718555455878,-659.62,0.00015092,2]
[329667572,1718555455922,-659.62,0.00015092,2]
[329667573,1718555455935,-500.0,0.00015092,2]
[329667574,1718555455960,-500.0,0.00015092,2]
[329667575,1718555455996,-6090.84,0.00015092,2]
[329667576,1718555456048,-6090.84,0.00015092,2]
[329667577,1718555456074,-6090.84,0.00015092,2]
[329667578,1718555456113,-6090.84,0.00015092,2]
[329667579,1718555456125,-615.0147293,0.00015092,2]
[329667580,1718555456159,-500.0,0.00015092,2]
[329667581,1718555456177,-557.97,0.00015092,2]
[329667582,1718555456198,-500.0,0.00015092,2]
[329667583,1718555456225,-208.48799237,0.00015093,2]
[329667584,1718555456254,-317.64353351,0.00015093,2]
[329667585,1718555456284,-262.07845255,0.00015093,2]
[329667586,1718555456319,-187.46396613,0.00015093,2]